Workbook

Sheet StartHere
B2: Student Identification Sheet (version5.2)
B4: Name | C4: Melissa salgado | D4: <<- enter your name here | G4: (1) | H4: Add your name to Cell C4 and your Student ID to cell C6. Then Click [Start Here] to finish loading data.
G5: (2) | H5: Change the file name to include your name.
B6: Student ID | C6: 2434822 | D6: <<- enter your Student ID here | G6: (3) | H6: When done with your work, Click [I'm Done]
G7: (3) | H7: Upload the file to the applicable iCollege
B8: Date/time | C8: =NOW() -> 2021-04-02T01:24:05.380 | H8: assignment folder to receive credit for this workshop/tutorial
C9: Spring 2021 | G9: (4) | H9: Never use a file created or started by another student (that is academic dishonesty). All text, codes, writing, data entry, formulas, configuration and instructions must be performed by the individual submitting the work.
C10: You must use Excel Desktop. Cloud Excel 365 will not work for this class. | E10: 2021-04-01T23:34:17.040 | F10: Melissa salgado started S01
C12: Collaboration Started
C14: Individual Challenge started
C15: Kurt Schmitz © 2020 Do not post or reproduce.
B17: Excel release | C17: =INFO("release") -> 16.0 | D17: << Mac Users below 16.24, please update!
B18: OS | C18: =INFO("OSVERSION") -> Windows (64-bit) NT :.00 | D18: << Windows users with version 16.0 are good to go.

Sheet 5.ID (hidden)
A1: Do Not Alter or Delete this Worksheet or you submission cannot be graded! | E1: DirVer
A2: Action | B2: Name | C2: Panther ID | D2: Date/Time | E2: S01
A3: Start S01 | B3: Melissa salgado | C3: 2434822 | D3: 2021-04-01T23:34:17.010 | E3: User
A4: Starter Sheet | B4: None | C4: 0 | D4: 2020-01-01 | E4: C:\Users\HP\AppData\Local\Temp
E5: Welcome to Microsoft Excel version 16.0 build 4266 running on Windows (64-bit) NT :.00!

Sheet Financial information
A1: Donut Information | Z1: Spring 2021
A2: Based on the below data, create the profit model for Donuts to Go. | Z2: Melissa salgado
A3: Assume that each customer will buy one donut and one cup of coffee
F5: Enter totals
B6: Time period | E6: Fixed Costs | F6: =C11+C13+C17+C18+C19+C14+C20+C21+C23+C25+C26 -> 5550
A7: Revenue: Cup of Coffee | C7: 4 | E7: Varible Costs | F7: =C9+C15+C16 -> 0.85
A8: Revenue: Donut | C8: 3.5 | E8: Coffee | F8: =C15+C16 -> 0.35
A9: Donut ingredients per donunt) | B9: per donut | C9: 0.5 | E9: Donut | F9: =C9 -> 0.5
A10: paper products: napkins, plates etc
A11: Insurance | B11: month | C11: 200
A13: Maintenance & Repairs to equipment | B13: month | C13: 0
A14: Marketing & Promotion: Advertising | B14: month | C14: 50
A15: Coffee | B15: per cup | C15: 0.25
A16: Coffee cups | B16: per cup | C16: 0.1
A17: Payroll: Wages (Owner/ Manager) | B17: month | C17: 2500
A18: Payroll: Wages (per Employees) | B18: month | C18: 1000
A19: Donut and Coffee equipment rent | B19: month | C19: 500
A20: Professional Fees: Accounting | B20: month | C20: 50
A21: Professional Fees: Legal | B21: month | C21: 25
A22: Powdered and Liquid Beverages | C22: 0
A23: Rent | B23: month | C23: 1000
A24: Previous research expense for Donuts advancements | C24: 1500
A25: Supplies: Office | B25: month | C25: 25
A26: Utilities | B26: month | C26: 200
A30: Additional Data
A31: Monthly Production | B31: Lost Sales | C31: Day old revenue | D31: High demand, % above Average | E31: Low Demand, % below average
A32: 4000 | B32: 3 | C32: 1.25 | D32: 0.22 | E32: 0.26
A33: Franchise
A34: Monthly Fixed Expense increase | B34: 7000
A35: Monthly Production Increase | B35: 0.32
A36: Monthly demand increase | B36: 0.24
A37: States of Natures | B37: probabilities
A38: High demand | B38: 0.2
A39: Average demand | B39: 0.55
A40: Low demand | B40: 0.25
A64: Total

Sheet SI and regression Pt 1
A1: Month | B1: Demand | C1: Yearly average | D1: Seasonal Index | E1: Average SI | F1: Deseasonalized | G1: Time period | J1: Regression Output
A2: 1 | B2: 3209 | D2: =B2/$C$13 -> 1.045276873 | E2: =AVERAGEIF(A$2:A$37,A2,D$2:D$37) -> 0.8071701604 | F2: =B2/E2 -> 3975.617729 | G2: 1 | I2: CLICK CELL J2 as output cell for regression | J2: =INTERCEPT(F2:F37,Time__period) -> 2997.412907 | K2: Intercept
A3: 2 | B3: 2778 | D3: =B3/$C$13 -> 0.9048859935 | E3: =AVERAGEIF(A$2:A$37,A3,D$2:D$37) -> 0.8455862729 | F3: =B3/E3 -> 3285.294581 | G3: 2 | J3: =SLOPE(F2:F37,Time__period) -> 21.05530212 | K3: Slope
A4: 3 | B4: 2428 | D4: 0.7908794788 | E4: 0.8098103858 | F4: 2998.232725 | G4: 3
A5: 4 | B5: 2996 | D5: 0.9758957655 | E5: 0.8637393825 | F5: 3468.638875 | G5: 4
A6: 5 | B6: 2349 | D6: 0.7651465798 | E6: 0.8371529701 | F6: 2805.9388 | G6: 5
A7: 6 | B7: 3767 | D7: 1.227035831 | E7: 1.115504601 | F7: 3376.947074 | G7: 6
A8: 7 | B8: 3338 | D8: 1.087296417 | E8: 1.095092593 | F8: 3048.144075 | G8: 7
A9: 8 | B9: 2604.5 | D9: 0.8483713355 | E9: 0.8800585052 | F9: 2959.462336 | G9: 8
A10: 9 | B10: 2251.5 | D10: 0.7333876221 | E10: 0.8714966286 | F10: 2583.486758 | G10: 9
A11: 10 | B11: 3246 | D11: 1.05732899 | E11: 1.12741788 | F11: 2879.145398 | G11: 10
A12: 11 | B12: 3542 | C12: Put yearly average in below cell | D12: 1.153745928 | E12: 1.269626426 | F12: 2789.797005 | G12: 11
A13: 12 | B13: 4331 | C13: =AVERAGE(B2:B13) -> 3070 | D13: 1.410749186 | E13: 1.477344194 | F13: 2931.612021 | G13: 12
A14: 1 | B14: 2217 | D14: =B14/$C$25 -> 0.6451331296 | E14: 0.8071701604 | F14: 2746.632753 | G14: 13
A15: 2 | B15: 2683.5 | D15: =B15/$C$25 -> 0.780881711 | E15: 0.8455862729 | F15: 3173.5378 | G15: 14
A16: 3 | B16: 2954.5 | D16: 0.8597410156 | E16: 0.8098103858 | F16: 3648.38492 | G16: 15
A17: 4 | B17: 3235 | D17: 0.9413647607 | E17: 0.8637393825 | F17: 3745.342711 | G17: 16
A18: 5 | B18: 2459 | D18: 0.7155536156 | E18: 0.8371529701 | F18: 2937.33653 | G18: 17
A19: 6 | B19: 3794 | D19: 1.104030263 | E19: 1.115504601 | F19: 3401.151367 | G19: 18
A20: 7 | B20: 4589 | D20: 1.33537029 | E20: 1.095092593 | F20: 4190.51323 | G20: 19
A21: 8 | B21: 3087 | D21: 0.8982976866 | E21: 0.8800585052 | F21: 3507.721341 | G21: 20
A22: 9 | B22: 3112 | D22: 0.9055725302 | E22: 0.8714966286 | F22: 3570.868662 | G22: 21
A23: 10 | B23: 3785 | D23: 1.10141132 | E23: 1.12741788 | F23: 3357.229 | G23: 22
A24: 11 | B24: 4193 | C24: Put yearly average in below cell | D24: 1.220136767 | E24: 1.269626426 | F24: 3302.546256 | G24: 23
A25: 12 | B25: 5129 | C25: =AVERAGE(B14:B25) -> 3436.5 | D25: 1.492506911 | E25: 1.477344194 | F25: 3471.770505 | G25: 24
A26: 1 | B26: 2674 | D26: =B26/$C$37 -> 0.7311004785 | E26: 0.8071701604 | F26: 3312.808292 | G26: 25
A27: 2 | B27: 3112.5 | D27: =B27/$C$37 -> 0.8509911141 | E27: 0.8455862729 | F27: 3680.878108 | G27: 26
A28: 3 | B28: 2848.5 | D28: 0.778810663 | E28: 0.8098103858 | F28: 3517.490082 | G28: 27
A29: 4 | B29: 2465 | D29: 0.6739576213 | E29: 0.8637393825 | F29: 2853.870102 | G29: 28
A30: 5 | B30: 3770 | D30: 1.030758715 | E30: 0.8371529701 | F30: 4503.358567 | G30: 29
A31: 6 | B31: 3714 | D31: 1.01544771 | E31: 1.115504601 | F31: 3329.434944 | G31: 30
A32: 7 | B32: 3155 | D32: 0.8626110731 | E32: 1.095092593 | F32: 2881.034918 | G32: 31
A33: 8 | B33: 3268 | D33: 0.8935064935 | E33: 0.8800585052 | F33: 3713.389486 | G33: 32
A34: 9 | B34: 3568 | D34: 0.9755297334 | E34: 0.8714966286 | F34: 4094.106486 | G34: 33
A35: 10 | B35: 4475 | D35: =B35/$C$37 -> 1.223513329 | E35: 1.12741788 | F35: 3969.246968 | G35: 34
A36: 11 | B36: 5248.5 | C36: Put yearly average in below cell | D36: 1.434996582 | E36: 1.269626426 | F36: 4133.893162 | G36: 35 | I36: Use the average seasonal Index in the column for year 2018
A37: 12 | B37: 5591.5 | C37: =AVERAGE(B26:B37) -> 3657.5 | D37: =B37/$C$37 -> 1.528776487 | E37: 1.477344194 | F37: 3784.832283 | G37: 36 | H37: Deseasonalized forecast | I37: Seasonalized forecast
A38: 1 | E38: 0.8071701604 | G38: 37 | H38: =_xlfn.FORECAST.LINEAR(G38,F$2:F$37,Time__period) -> 3776.459085 | I38: =H38*E2 -> 3048.245085 | J38: When you move your forecast to the profit models, you must use an equation, not just copy the values
A39: 2 | E39: 0.8455862729 | G39: 38 | H39: =_xlfn.FORECAST.LINEAR(G39,F$2:F$37,Time__period) -> 3797.514387 | I39: =H39*E3 -> 3211.126037
A40: 3 | E40: 0.8098103858 | G40: 39 | H40: =_xlfn.FORECAST.LINEAR(G40,F$2:F$37,Time__period) -> 3818.569689 | I40: 3092.317393
A41: 4 | E41: 0.8637393825 | G41: 40 | H41: =_xlfn.FORECAST.LINEAR(G41,F$2:F$37,Time__period) -> 3839.624991 | I41: 3316.435319
A42: 5 | E42: 0.8371529701 | G42: 41 | H42: =_xlfn.FORECAST.LINEAR(G42,F$2:F$37,Time__period) -> 3860.680293 | I42: 3231.979974
A43: 6 | E43: 1.115504601 | G43: 42 | H43: =_xlfn.FORECAST.LINEAR(G43,F$2:F$37,Time__period) -> 3881.735596 | I43: 4330.093918
A44: 7 | E44: 1.095092593 | G44: 43 | H44: =_xlfn.FORECAST.LINEAR(G44,F$2:F$37,Time__period) -> 3902.790898 | I44: 4273.917405
A45: 8 | E45: 0.8800585052 | G45: 44 | H45: =_xlfn.FORECAST.LINEAR(G45,F$2:F$37,Time__period) -> 3923.8462 | I45: 3453.214221
A46: 9 | E46: 0.8714966286 | G46: 45 | H46: =_xlfn.FORECAST.LINEAR(G46,F$2:F$37,Time__period) -> 3944.901502 | I46: 3437.968359
A47: 10 | E47: 1.12741788 | G47: 46 | H47: =_xlfn.FORECAST.LINEAR(G47,F$2:F$37,Time__period) -> 3965.956804 | I47: 4471.29061
A48: 11 | E48: 1.269626426 | G48: 47 | H48: =_xlfn.FORECAST.LINEAR(G48,F$2:F$37,Time__period) -> 3987.012106 | I48: 5062.01593
A49: 12 | E49: 1.477344194 | G49: 48 | H49: =_xlfn.FORECAST.LINEAR(G49,F$2:F$37,Time__period) -> 4008.067408 | I49: =H49*E13 -> 5921.295117
Z100: Melissa salgado
Z102: Spring 2021

Sheet Current operations Pt2 & Pt3
A1: CURRENT OPERATIONS | E1: Monthly Production | F1: Lost Sales | G1: Day old revenue | Z1: test
A2: Part 2 | E2: ='Financial information '!A32 -> 4000 | F2: ='Financial information '!B32 -> 3 | G2: ='Financial information '!C32 -> 1.25 | Z2: Summer 2020
A3: AVERAGE DEMAND
A4: Month | B4: January | C4: February | D4: March | E4: April | F4: May | G4: June | H4: July | I4: August | J4: September | K4: October | L4: November | M4: December
A5: Demand | B5: ='SI and regression Pt 1'!I38 -> 3048.245085 | C5: ='SI and regression Pt 1'!I39 -> 3211.126037 | D5: ='SI and regression Pt 1'!I40 -> 3092.317393 | E5: ='SI and regression Pt 1'!I41 -> 3316.435319 | F5: ='SI and regression Pt 1'!I42 -> 3231.979974 | G5: ='SI and regression Pt 1'!I43 -> 4330.093918 | H5: ='SI and regression Pt 1'!I44 -> 4273.917405 | I5: ='SI and regression Pt 1'!I45 -> 3453.214221 | J5: ='SI and regression Pt 1'!I46 -> 3437.968359 | K5: ='SI and regression Pt 1'!I47 -> 4471.29061 | L5: ='SI and regression Pt 1'!I48 -> 5062.01593 | M5: ='SI and regression Pt 1'!I49 -> 5921.295117
A6: satisfied demand | B6: =MIN($E$2,B5) -> 3048.245085 | C6: =MIN($E$2,C5) -> 3211.126037 | D6: 3092.317393 | E6: 3316.435319 | F6: 3231.979974 | G6: 4000 | H6: 4000 | I6: 3453.214221 | J6: 3437.968359 | K6: 4000 | L6: 4000 | M6: 4000
A7: Extra donuts(over) | B7: =E2-$B$6 -> 951.7549148 | C7: =$E$2-C6 -> 788.8739631 | D7: =$E$2-D6 -> 907.6826067 | E7: 683.564681 | F7: 768.0200256 | G7: 0 | H7: 0 | I7: 546.7857787 | J7: 562.031641 | K7: 0 | L7: 0 | M7: 0
A8: Unsatisfied customers (short) | B8: =B5-B6 -> 0 | C8: =C5-C6 -> 0 | D8: 0 | E8: 0 | F8: 0 | G8: 330.0939182 | H8: 273.9174049 | I8: 0 | J8: 0 | K8: 471.2906104 | L8: 1062.01593 | M8: 1921.295117
A9: Revenue
A10: coffee | B10: ='Financial information '!$C$7*B6 -> 12192.98034 | C10: ='Financial information '!$C$7*C6 -> 12844.50415 | D10: ='Financial information '!$C$7*D6 -> 12369.26957 | E10: ='Financial information '!$C$7*E6 -> 13265.74128 | F10: ='Financial information '!$C$7*F6 -> 12927.9199 | G10: ='Financial information '!$C$7*G6 -> 16000 | H10: ='Financial information '!$C$7*H6 -> 16000 | I10: ='Financial information '!$C$7*I6 -> 13812.85689 | J10: ='Financial information '!$C$7*J6 -> 13751.87344 | K10: ='Financial information '!$C$7*K6 -> 16000 | L10: ='Financial information '!$C$7*L6 -> 16000 | M10: ='Financial information '!$C$7*M6 -> 16000
A11: donut | B11: ='Financial information '!$C$8*B6 -> 10668.8578 | C11: ='Financial information '!$C$8*C6 -> 11238.94113 | D11: ='Financial information '!$C$8*D6 -> 10823.11088 | E11: ='Financial information '!$C$8*E6 -> 11607.52362 | F11: ='Financial information '!$C$8*F6 -> 11311.92991 | G11: ='Financial information '!$C$8*G6 -> 14000 | H11: ='Financial information '!$C$8*H6 -> 14000 | I11: ='Financial information '!$C$8*I6 -> 12086.24977 | J11: ='Financial information '!$C$8*J6 -> 12032.88926 | K11: ='Financial information '!$C$8*K6 -> 14000 | L11: ='Financial information '!$C$8*L6 -> 14000 | M11: ='Financial information '!$C$8*M6 -> 14000
A12: Revenue from day old sales | B12: =$G$2*B7 -> 1189.693643 | C12: =$G$2*C7 -> 986.0924539 | D12: 1134.603258 | E12: 854.4558512 | F12: 960.025032 | G12: 0 | H12: 0 | I12: 683.4822234 | J12: 702.5395512 | K12: 0 | L12: 0 | M12: 0
A13: Total Revenue | B13: =SUM(B10:B12) -> 24051.53178 | C13: =SUM(C10:C12) -> 25069.53773 | D13: 24326.98371 | E13: 25727.72074 | F13: 25199.87484 | G13: 30000 | H13: 30000 | I13: 26582.58888 | J13: 26487.30224 | K13: 30000 | L13: 30000 | M13: 30000
A14: Expenses
A15: Fixed Expenses
A16: Total Fixed Expense | B16: ='Financial information '!$F$6 -> 5550 | C16: ='Financial information '!$F$6 -> 5550 | D16: ='Financial information '!$F$6 -> 5550 | E16: ='Financial information '!$F$6 -> 5550 | F16: ='Financial information '!$F$6 -> 5550 | G16: ='Financial information '!$F$6 -> 5550 | H16: ='Financial information '!$F$6 -> 5550 | I16: ='Financial information '!$F$6 -> 5550 | J16: ='Financial information '!$F$6 -> 5550 | K16: ='Financial information '!$F$6 -> 5550 | L16: ='Financial information '!$F$6 -> 5550 | M16: ='Financial information '!$F$6 -> 5550
A18: Variable Expenses
A19: Coffee Variable expense | B19: =('Financial information '!$C$15+'Financial information '!$C$16)*$E$2 -> 1400 | C19: =('Financial information '!$C$15+'Financial information '!$C$16)*$E$2 -> 1400 | D19: =('Financial information '!$C$15+'Financial information '!$C$16)*$E$2 -> 1400 | E19: =('Financial information '!$C$15+'Financial information '!$C$16)*$E$2 -> 1400 | F19: =('Financial information '!$C$15+'Financial information '!$C$16)*$E$2 -> 1400 | G19: =('Financial information '!$C$15+'Financial information '!$C$16)*$E$2 -> 1400 | H19: =('Financial information '!$C$15+'Financial information '!$C$16)*$E$2 -> 1400 | I19: =('Financial information '!$C$15+'Financial information '!$C$16)*$E$2 -> 1400 | J19: =('Financial information '!$C$15+'Financial information '!$C$16)*$E$2 -> 1400 | K19: =('Financial information '!$C$15+'Financial information '!$C$16)*$E$2 -> 1400 | L19: =('Financial information '!$C$15+'Financial information '!$C$16)*$E$2 -> 1400 | M19: =('Financial information '!$C$15+'Financial information '!$C$16)*$E$2 -> 1400
A20: Donut Variable expense | B20: ='Financial information '!$C$9*$E$2 -> 2000 | C20: ='Financial information '!$C$9*$E$2 -> 2000 | D20: ='Financial information '!$C$9*$E$2 -> 2000 | E20: ='Financial information '!$C$9*$E$2 -> 2000 | F20: ='Financial information '!$C$9*$E$2 -> 2000 | G20: ='Financial information '!$C$9*$E$2 -> 2000 | H20: ='Financial information '!$C$9*$E$2 -> 2000 | I20: ='Financial information '!$C$9*$E$2 -> 2000 | J20: ='Financial information '!$C$9*$E$2 -> 2000 | K20: ='Financial information '!$C$9*$E$2 -> 2000 | L20: ='Financial information '!$C$9*$E$2 -> 2000 | M20: ='Financial information '!$C$9*$E$2 -> 2000
A21: Total Variable Expenses | B21: =B19+B20 -> 3400 | C21: =C19+C20 -> 3400 | D21: 3400 | E21: 3400 | F21: 3400 | G21: 3400 | H21: 3400 | I21: 3400 | J21: 3400 | K21: 3400 | L21: 3400 | M21: 3400
A22: Expenses: due to lost sales | B22: =$F$2*B8 -> 0 | C22: =$F$2*C8 -> 0 | D22: 0 | E22: 0 | F22: 0 | G22: =$F$2*G8 -> 990.2817547 | H22: 821.7522147 | I22: 0 | J22: 0 | K22: 1413.871831 | L22: 3186.047791 | M22: 5763.88535
A23: Total Expenses | B23: =B16+B21+B22 -> 8950 | C23: =C16+C21+C22 -> 8950 | D23: 8950 | E23: 8950 | F23: 8950 | G23: 9940.281755 | H23: 9771.752215 | I23: 8950 | J23: 8950 | K23: 10363.87183 | L23: 12136.04779 | M23: 14713.88535
N24: Yearly Total
A25: Profit Donuts and Coffee | B25: =B13-B23 -> 15101.53178 | C25: =C13-C23 -> 16119.53773 | D25: 15376.98371 | E25: 16777.72074 | F25: 16249.87484 | G25: 20059.71825 | H25: 20228.24779 | I25: 17632.58888 | J25: 17537.30224 | K25: 19636.12817 | L25: 17863.95221 | M25: 15286.11465 | N25: =SUM(B25:M25) -> 207869.701
A27: Part 3 | B27: You should be able to copy from average to high and low and then just make some modifications
A28: HIGH DEMAND
A29: Month
A30: Demand
A31: satisfied demand
A32: Extra donuts(over)
A33: Unsatisfied customers (short)
A34: Revenue
A35: coffee
A36: donut
A37: Revenue from day old sales
A38: Total Revenue
A39: Expenses
A40: Fixed Expenses
A41: Total Fixed Expense
A43: Variable Expenses
A44: Coffee Variable expense
A45: Donut Variable expense
A46: Total Variable Expenses
A47: Expenses: due to lost sales
A48: Total Expenses
N49: Yearly Total
A50: Profit Donuts and Coffee
A52: Part 3
A53: LOW DEMAND
A54: Month
A55: Demand
A56: satisfied demand
A57: Extra donuts(over)
A58: Unsatisfied customers (short)
A59: Revenue
A60: coffee
A61: donut
A62: Revenue from day old sales
A63: Total Revenue
A64: Expenses
A65: Fixed Expenses
A66: Total Fixed Expense
A68: Variable Expenses
A69: Coffee Variable expense
A70: Donut Variable expense
A71: Total Variable Expenses
A72: Expenses: due to lost sales
A73: Total Expenses
N74: Yearly Total
A75: Profit Donuts and Coffee
Z200: Melissa salgado
Z201: Spring 2021

Sheet Franchise operations Pt2 & Pt3
A1: FRANCHISE | E1: Monthly Production | F1: Lost Sales | G1: Day old revenue
A2: Part 2 | E2: ='Financial information '!A32*1.32 -> 5280 | F2: ='Financial information '!B32 -> 3 | G2: ='Financial information '!C32 -> 1.25
A3: AVERAGE DEMAND
A4: Month | B4: January | C4: February | D4: March | E4: April | F4: May | G4: June | H4: July | I4: August | J4: September | K4: October | L4: November | M4: December
A5: Demand | B5: ='Current operations Pt2 & Pt3 '!B5*1.24 -> 3779.823906 | C5: ='Current operations Pt2 & Pt3 '!C5*1.24 -> 3981.796286 | D5: ='Current operations Pt2 & Pt3 '!D5*1.24 -> 3834.473568 | E5: ='Current operations Pt2 & Pt3 '!E5*1.24 -> 4112.379796 | F5: ='Current operations Pt2 & Pt3 '!F5*1.24 -> 4007.655168 | G5: ='Current operations Pt2 & Pt3 '!G5*1.24 -> 5369.316459 | H5: ='Current operations Pt2 & Pt3 '!H5*1.24 -> 5299.657582 | I5: ='Current operations Pt2 & Pt3 '!I5*1.24 -> 4281.985634 | J5: ='Current operations Pt2 & Pt3 '!J5*1.24 -> 4263.080765 | K5: ='Current operations Pt2 & Pt3 '!K5*1.24 -> 5544.400357 | L5: ='Current operations Pt2 & Pt3 '!L5*1.24 -> 6276.899754 | M5: ='Current operations Pt2 & Pt3 '!M5*1.24 -> 7342.405945
A6: satisfied demand | B6: =MIN($E$2,B5) -> 3779.823906 | C6: =MIN($E$2,C5) -> 3981.796286 | D6: =MIN($E$2,D5) -> 3834.473568 | E6: 4112.379796 | F6: 4007.655168 | G6: 5280 | H6: 5280 | I6: 4281.985634 | J6: 4263.080765 | K6: 5280 | L6: 5280 | M6: 5280
A7: Extra donuts(over) | B7: =$E$2-B6 -> 1500.176094 | C7: =$E$2-C6 -> 1298.203714 | D7: 1445.526432 | E7: 1167.620204 | F7: 1272.344832 | G7: 0 | H7: 0 | I7: 998.0143656 | J7: 1016.919235 | K7: 0 | L7: 0 | M7: 0
A8: Unsatisfied customers (short) | B8: =B5-B6 -> 0 | C8: =C5-C6 -> 0 | D8: 0 | E8: 0 | F8: 0 | G8: 89.3164586 | H8: 19.65758207 | I8: 0 | J8: 0 | K8: 264.4003569 | L8: 996.8997538 | M8: 2062.405945
A9: Revenue
A10: coffee | B10: ='Financial information '!$C$7*B6 -> 15119.29562 | C10: ='Financial information '!$C$7*C6 -> 15927.18514 | D10: ='Financial information '!$C$7*D6 -> 15337.89427 | E10: ='Financial information '!$C$7*E6 -> 16449.51918 | F10: ='Financial information '!$C$7*F6 -> 16030.62067 | G10: ='Financial information '!$C$7*G6 -> 21120 | H10: ='Financial information '!$C$7*H6 -> 21120 | I10: ='Financial information '!$C$7*I6 -> 17127.94254 | J10: ='Financial information '!$C$7*J6 -> 17052.32306 | K10: ='Financial information '!$C$7*K6 -> 21120 | L10: ='Financial information '!$C$7*L6 -> 21120 | M10: ='Financial information '!$C$7*M6 -> 21120
A11: donut | B11: ='Financial information '!$C$8*B6 -> 13229.38367 | C11: ='Financial information '!$C$8*C6 -> 13936.287 | D11: ='Financial information '!$C$8*D6 -> 13420.65749 | E11: ='Financial information '!$C$8*E6 -> 14393.32928 | F11: ='Financial information '!$C$8*F6 -> 14026.79309 | G11: ='Financial information '!$C$8*G6 -> 18480 | H11: ='Financial information '!$C$8*H6 -> 18480 | I11: ='Financial information '!$C$8*I6 -> 14986.94972 | J11: ='Financial information '!$C$8*J6 -> 14920.78268 | K11: ='Financial information '!$C$8*K6 -> 18480 | L11: ='Financial information '!$C$8*L6 -> 18480 | M11: ='Financial information '!$C$8*M6 -> 18480
A12: Revenue from day old sales | B12: =$G$2*B7 -> 1875.220118 | C12: =$G$2*C7 -> 1622.754643 | D12: 1806.90804 | E12: 1459.525256 | F12: 1590.43104 | G12: 0 | H12: 0 | I12: 1247.517957 | J12: 1271.149043 | K12: 0 | L12: 0 | M12: 0
A13: Total Revenue | B13: =B10+B11+B12 -> 30223.89941 | C13: =C10+C11+C12 -> 31486.22679 | D13: 30565.4598 | E13: 32302.37372 | F13: 31647.8448 | G13: 39600 | H13: 39600 | I13: 33362.41021 | J13: 33244.25478 | K13: 39600 | L13: 39600 | M13: 39600
A14: Expenses
A15: Fixed Expenses
A16: Total Fixed Expense | B16: ='Financial information '!$F$6+'Financial information '!$B$34 -> 12550 | C16: ='Financial information '!$F$6+'Financial information '!$B$34 -> 12550 | D16: ='Financial information '!$F$6+'Financial information '!$B$34 -> 12550 | E16: ='Financial information '!$F$6+'Financial information '!$B$34 -> 12550 | F16: ='Financial information '!$F$6+'Financial information '!$B$34 -> 12550 | G16: ='Financial information '!$F$6+'Financial information '!$B$34 -> 12550 | H16: ='Financial information '!$F$6+'Financial information '!$B$34 -> 12550 | I16: ='Financial information '!$F$6+'Financial information '!$B$34 -> 12550 | J16: ='Financial information '!$F$6+'Financial information '!$B$34 -> 12550 | K16: ='Financial information '!$F$6+'Financial information '!$B$34 -> 12550 | L16: ='Financial information '!$F$6+'Financial information '!$B$34 -> 12550 | M16: ='Financial information '!$F$6+'Financial information '!$B$34 -> 12550
A18: Variable Expenses
A19: Coffee Variable expense | B19: =('Financial information '!$C$15+'Financial information '!$C$16)*$E$2 -> 1848 | C19: =('Financial information '!$C$15+'Financial information '!$C$16)*$E$2 -> 1848 | D19: =('Financial information '!$C$15+'Financial information '!$C$16)*$E$2 -> 1848 | E19: =('Financial information '!$C$15+'Financial information '!$C$16)*$E$2 -> 1848 | F19: =('Financial information '!$C$15+'Financial information '!$C$16)*$E$2 -> 1848 | G19: =('Financial information '!$C$15+'Financial information '!$C$16)*$E$2 -> 1848 | H19: =('Financial information '!$C$15+'Financial information '!$C$16)*$E$2 -> 1848 | I19: =('Financial information '!$C$15+'Financial information '!$C$16)*$E$2 -> 1848 | J19: =('Financial information '!$C$15+'Financial information '!$C$16)*$E$2 -> 1848 | K19: =('Financial information '!$C$15+'Financial information '!$C$16)*$E$2 -> 1848 | L19: =('Financial information '!$C$15+'Financial information '!$C$16)*$E$2 -> 1848 | M19: =('Financial information '!$C$15+'Financial information '!$C$16)*$E$2 -> 1848
A20: Donut Variable expense | B20: ='Financial information '!$C$9*$E$2 -> 2640 | C20: ='Financial information '!$C$9*$E$2 -> 2640 | D20: ='Financial information '!$C$9*$E$2 -> 2640 | E20: ='Financial information '!$C$9*$E$2 -> 2640 | F20: ='Financial information '!$C$9*$E$2 -> 2640 | G20: ='Financial information '!$C$9*$E$2 -> 2640 | H20: ='Financial information '!$C$9*$E$2 -> 2640 | I20: ='Financial information '!$C$9*$E$2 -> 2640 | J20: ='Financial information '!$C$9*$E$2 -> 2640 | K20: ='Financial information '!$C$9*$E$2 -> 2640 | L20: ='Financial information '!$C$9*$E$2 -> 2640 | M20: ='Financial information '!$C$9*$E$2 -> 2640
A21: Total Variable Expenses | B21: =B19+B20 -> 4488 | C21: =C19+C20 -> 4488 | D21: 4488 | E21: 4488 | F21: 4488 | G21: 4488 | H21: 4488 | I21: 4488 | J21: 4488 | K21: 4488 | L21: 4488 | M21: 4488
A22: Expenses: due to lost sales | B22: =$F$2*B8 -> 0 | C22: =$F$2*C8 -> 0 | D22: 0 | E22: 0 | F22: 0 | G22: 267.9493758 | H22: 58.97274621 | I22: 0 | J22: 0 | K22: 793.2010708 | L22: 2990.699261 | M22: 6187.217834
A23: Total Expenses | B23: =B16+B21+B22 -> 17038 | C23: =C16+C21+C22 -> 17038 | D23: 17038 | E23: 17038 | F23: 17038 | G23: 17305.94938 | H23: 17096.97275 | I23: 17038 | J23: 17038 | K23: 17831.20107 | L23: 20028.69926 | M23: =M16+M21+M22 -> 23225.21783
N24: Yearly Total
A25: Profit Donuts and Coffee | B25: =B13-B23 -> 13185.89941 | C25: =C13-C23 -> 14448.22679 | D25: 13527.4598 | E25: 15264.37372 | F25: 14609.8448 | G25: 22294.05062 | H25: 22503.02725 | I25: 16324.41021 | J25: 16206.25478 | K25: 21768.79893 | L25: 19571.30074 | M25: 16374.78217 | N25: =SUM(B25:M25) -> 206078.4292
A27: Part 3
A28: HIGH DEMAND
A29: Month
A30: Demand
A31: satisfied demand
A32: Extra donuts(over)
A33: Unsatisfied customers (short)
A34: Revenue
A35: coffee
A36: donut
A37: Revenue from day old sales
A38: Total Revenue
A39: Expenses
A40: Fixed Expenses
A41: Total Fixed Expense
A43: Variable Expenses
A44: Coffee Variable expense
A45: Donut Variable expense
A46: Total Variable Expenses
A47: Expenses: due to lost sales
A48: Total Expenses
N49: Yearly Total
A50: Profit Donuts and Coffee
A52: Part 3
A53: LOW DEMAND
A54: Month
A55: Demand
A56: satisfied demand
A57: Extra donuts(over)
A58: Unsatisfied customers (short)
A59: Revenue
A60: coffee
A61: donut
A62: Revenue from day old sales
A63: Total Revenue
A64: Expenses
A65: Fixed Expenses
A66: Total Fixed Expense
A68: Variable Expenses
A69: Coffee Variable expense
A70: Donut Variable expense
A71: Total Variable Expenses
A72: Expenses: due to lost sales
A73: Total Expenses
N74: Yearly Total
A75: Profit Donuts and Coffee

Sheet Expected Values Pt3
B1: PAYOFF TABLE
C3: State of Nature | H3: Summary of Results | I3: Methods
B4: Decision Alternatives | C4: Low | D4: Average | E4: High | H4: =B4 -> Decision Alternatives | I4: Maximin | J4: MaxiMax | K4: Laplace | L4: MinMax regret | M4: EVUII | N4: EOL
H7: Decision Alternatives
B8: DM UNDER IGNORANCE
H9: Kiana should choose to:
B10: Maximin
C11: State of Nature
B12: Decision Alternatives | C12: Low | D12: Average | E12: High | H12: Because:
B17: Maximax
C18: State of Nature
B19: Decision Alternatives | C19: Low | D19: Average | E19: High
B24: Laplace
C25: State of Nature
B26: Decision Alternatives | C26: Low | D26: Average | E26: High
B31: Minimax Regret
B32: Regret table | C32: State of Nature
B33: Decision Alternatives | C33: Low | D33: Average | E33: High
B37: DM UNDER RISK
B38: EVUII
C39: State of Nature
B40: Decision Alternatives | C40: Low | D40: Average | E40: High
B41: Probability
B46: EVUPI
C47: State of Nature
B48: Decision Alternatives | C48: Low | D48: Average | E48: High
B49: Probability
B52: EVPI
B54: EOL
B55: Regret table | C55: State of Nature
B56: Decision Alternatives | C56: Low | D56: Average | E56: High
B57: Probability

Sheet Sheet9
